bitfinex/quotes_SOLUSD_20240530
["timestamp","ask_amount","ask_price","bid_price","bid_amount"]
[1717074422970,4.4142,167.64,167.56,2.2081]
[1717074423170,4.4142,167.64,167.57,2.208]
[1717074423675,4.4142,167.64,167.56,2.2081]
[1717074424972,4.4142,167.64,167.57,2.2079]
[1717074425274,6.86,167.58,167.57,2.2079]
[1717074426173,2.2074,167.62,167.58,2.2078]
[1717074426362,4.4138,167.66,167.58,6.0128]
[1717074426552,6.0639,167.68,167.61,60.0]
[1717074426758,2.2067,167.67,167.63,2.2072]
[1717074426974,6.86,167.64,167.62,2.2073]
[1717074428280,27.44,167.68,167.62,2.2073]
[1717074428480,4.4127,167.7,167.63,2.2072]
[1717074428658,2.2067,167.68,167.63,2.2072]
[1717074428850,2.2067,167.67,167.63,2.2072]
[1717074429259,2.2066,167.68,167.63,2.2072]
[1717074430380,2.2067,167.67,167.63,2.2072]
[1717074430581,6.86,167.65,167.63,2.2072]
[1717074431073,6.86,167.65,167.64,2.2071]
[1717074431316,2.2066,167.68,167.59,92.8538]
[1717074431317,2.2069,167.66,167.59,92.8538]
[1717074431458,2.2069,167.66,167.61,2.2074]
[1717074431661,6.86,167.68,167.57,15.5391]
[1717074431863,6.86,167.6,167.57,15.5391]
[1717074432053,6.86,167.6,167.58,2.2078]
[1717074432254,6.86,167.6,167.58,8.3824]
[1717074432449,6.86,167.6,167.58,2.2078]
[1717074432676,2.2076,167.61,167.54,4.4168]
[1717074432992,6.86,167.57,167.56,2.208]
[1717074435572,6.86,167.57,167.48,60.0]
[1717074435770,6.2285,167.61,167.5,60.0]
[1717074435973,6.86,167.52,167.51,2.2088]
[1717074436180,2.2079,167.58,167.5,75.3392]
[1717074436181,2.2079,167.58,167.53,2.2084]
[1717074436389,6.86,167.55,167.54,2.2084]
[1717074436886,6.86,167.59,167.58,2.2078]
[1717074437470,6.86,167.59,167.57,2.2079]
[1717074437865,6.86,167.59,167.58,2.2079]
[1717074438589,27.44,167.68,167.59,2.2077]
[1717074438590,2.2071,167.64,167.59,2.2077]
[1717074439673,2.2072,167.63,167.58,2.2078]
[1717074439874,6.86,167.6,167.58,2.2078]
[1717074440085,2.2071,167.64,167.59,2.2077]
[1717074440283,2.2072,167.63,167.59,2.2077]
[1717074440490,6.86,167.6,167.58,23.5566]
[1717074441396,2.2071,167.64,167.59,2.2077]
[1717074441597,2.2072,167.63,167.59,2.2077]
[1717074441890,2.2068,167.66,167.61,2.2074]
[1717074442073,6.86,167.63,167.62,2.2073]
[1717074442487,2.2067,167.67,167.62,2.2073]
[1717074442694,6.86,167.64,167.62,2.2073]
[1717074442879,2.2067,167.67,167.62,2.2073]
[1717074443082,2.2067,167.67,167.62,8.8667]
[1717074443300,6.86,167.64,167.62,8.8667]
[1717074443477,2.2067,167.67,167.63,2.2072]
[1717074443682,6.86,167.65,167.64,2.207]
[1717074443999,11.2724,167.71,167.64,2.207]
[1717074444000,6.86,167.66,167.64,2.207]
[1717074444173,4.4124,167.71,167.64,2.207]
[1717074444376,6.86,167.66,167.64,8.3926]
[1717074444890,2.2063,167.7,167.64,6.1856]
[1717074445093,2.2063,167.7,167.65,68.3652]
[1717074445295,2.2063,167.7,167.66,2.2068]
[1717074446006,2.2063,167.7,167.65,66.1583]
[1717074446415,2.2063,167.7,167.65,68.3652]
[1717074446789,2.2062,167.71,167.66,2.2068]
[1717074446973,2.2063,167.7,167.65,68.3652]
[1717074447401,6.86,167.67,167.65,83.9376]
[1717074447593,2.2063,167.7,167.66,8.3878]
[1717074447798,2.206,167.72,167.67,2.2066]
[1717074448011,2.2058,167.74,167.69,2.2064]
[1717074448327,2.2059,167.73,167.68,68.7208]
[1717074449284,6.86,167.71,167.68,68.7208]
[1717074449497,6.86,167.76,167.69,2.2064]
[1717074450077,2.2057,167.75,167.7,2.2063]
[1717074450587,2.2055,167.76,167.71,2.2061]
[1717074450811,6.86,167.73,167.71,2.2061]
[1717074450992,2.2055,167.76,167.71,2.2061]
[1717074451194,2.2055,167.76,167.7,2.2062]
[1717074451703,10.9624,167.79,167.7,2.2062]
[1717074451704,2.2057,167.75,167.7,2.2062]
[1717074452108,2.2057,167.75,167.7,85.2175]
[1717074452292,10.9624,167.79,167.72,60.0]
[1717074452489,2.2053,167.78,167.72,62.2059]
[1717074452889,6.86,167.75,167.73,8.4455]
[1717074453185,6.86,167.76,167.74,2.2057]
[1717074453413,6.86,167.76,167.73,8.4454]
[1717074453595,6.86,167.76,167.73,23.4645]
[1717074454101,6.86,167.77,167.74,2.2057]
[1717074454687,2.2051,167.79,167.74,2.2057]
[1717074455188,2.2052,167.78,167.73,23.4645]
[1717074455513,6.86,167.75,167.73,23.4645]
[1717074456487,2.2052,167.78,167.73,23.4645]
[1717074456913,2.2052,167.78,167.73,8.4454]
[1717074457086,2.2054,167.77,167.72,2.206]
[1717074457293,2.2053,167.78,167.72,2.206]
[1717074457491,2.2053,167.78,167.73,2.2059]
[1717074457709,6.86,167.74,167.73,2.2059]
[1717074457900,6.86,167.8,167.7,113.97]
[1717074457901,2.2054,167.77,167.72,2.206]
[1717074458803,13.475,167.8,167.71,2.206]
[1717074459005,6.86,167.72,167.7,62.2062]
[1717074459515,6.86,167.71,167.68,2.2065]
[1717074459689,2.2062,167.71,167.66,2.2068]
[1717074459893,6.86,167.67,167.66,2.2068]
[1717074460209,6.86,167.67,167.65,22.175]
[1717074460210,6.86,167.67,167.65,8.5714]
[1717074460408,6.86,167.66,167.65,8.5714]
[1717074460708,2.2062,167.71,167.66,62.2067]
[1717074460930,6.86,167.67,167.66,2.2067]
[1717074461408,6.86,167.67,167.65,2.2069]
[1717074461715,12.9614,167.75,167.61,15.0762]
[1717074461716,6.86,167.66,167.61,21.9886]
[1717074461898,8.10913466,167.75,167.6,2.2075]
[1717074461899,6.86,167.62,167.6,2.2075]
[1717074462095,6.86,167.61,167.6,2.2075]
[1717074462315,4.4131,167.68,167.59,21.9886]
[1717074462489,6.86,167.61,167.59,24.1963]
[1717074462695,6.86,167.61,167.6,2.2076]
[1717074463395,6.86,167.61,167.59,2.2077]
[1717074463616,6.86,167.6,167.59,2.2077]
[1717074464419,2.2071,167.64,167.59,2.2077]
[1717074464607,12.522234,167.68,167.58,2.2078]
[1717074464608,2.2072,167.63,167.58,2.2078]
[1717074464795,2.207,167.65,167.59,2.2077]
[1717074465126,2.2071,167.64,167.59,2.2077]
[1717074465505,2.2069,167.65,167.6,2.2076]
[1717074466332,2.2069,167.65,167.59,2.2077]
[1717074466506,2.2071,167.64,167.59,2.2077]
[1717074467511,2.2071,167.64,167.58,2.2078]
[1717074468017,2.2072,167.63,167.58,2.2078]
[1717074470725,2.2071,167.64,167.59,2.2077]
[1717074471024,2.207,167.65,167.6,2.2076]
[1717074471602,2.2071,167.64,167.59,2.2077]
[1717074471803,2.2071,167.64,167.6,2.2076]
[1717074472023,2.207,167.65,167.6,2.2076]
[1717074472232,2.2071,167.64,167.59,2.2077]
[1717074472429,2.2071,167.64,167.57,78.01]
[1717074472430,2.2071,167.64,167.6,2.2076]
[1717074472619,2.207,167.65,167.6,2.2076]
[1717074473010,2.207,167.65,167.61,2.2074]
[1717074473908,2.207,167.65,167.6,2.2075]
[1717074474640,2.2071,167.64,167.6,2.2075]
[1717074475130,4.4134,167.67,167.58,18.01]
[1717074475334,4.4134,167.67,167.58,20.2178]
[1717074475633,2.2073,167.63,167.59,2.2077]
[1717074475845,2.2073,167.63,167.58,20.2178]
[1717074476139,2.2069,167.65,167.6,60.0]
[1717074476433,2.2071,167.64,167.6,60.0]
[1717074476732,2.2071,167.64,167.53,60.0]
[1717074476733,2.2076,167.6,167.53,60.0]
[1717074476903,6.417,167.64,167.51,60.0]
[1717074476904,2.208,167.58,167.51,60.0]
[1717074477107,2.208,167.58,167.53,2.2085]
[1717074477302,24.965,167.61,167.51,60.0]
[1717074477303,2.208,167.57,167.51,60.0]
[1717074477610,2.2079,167.58,167.54,2.2083]
[1717074478542,2.2079,167.58,167.53,2.2085]
[1717074478745,2.2078,167.59,167.53,60.0]
[1717074478929,2.2078,167.59,167.54,2.2083]
[1717074479924,20.55,167.61,167.54,2.2083]
[1717074481244,20.55,167.61,167.52,2.2086]
[1717074481423,2.208,167.57,167.51,2.2087]
[1717074481631,2.2082,167.56,167.48,60.0]
[1717074481837,2.2081,167.56,167.5,2.2089]
[1717074482018,2.2083,167.55,167.5,2.2089]
[1717074482342,2.2084,167.54,167.48,2.2091]
[1717074482541,2.2083,167.55,167.49,2.209]
[1717074483511,8.18183466,167.64,167.51,78.01]
[1717074483512,4.4152,167.61,167.51,78.01]
[1717074483714,17.4527,167.64,167.54,2.2084]
[1717074484024,17.4527,167.64,167.55,2.2082]
[1717074484346,2.2077,167.59,167.53,2.2085]
[1717074484520,2.2079,167.58,167.52,2.2086]
[1717074485232,2.208,167.57,167.49,78.01]
[1717074485437,6.417,167.64,167.48,18.01]
[1717074485438,2.2082,167.55,167.48,18.01]
[1717074485633,2.2082,167.55,167.49,2.2089]
[1717074485841,2.2082,167.56,167.5,62.2089]
[1717074486043,2.2082,167.56,167.5,2.2089]
[1717074486625,2.208,167.57,167.51,2.2088]
[1717074486959,6.417,167.64,167.56,60.0]
[1717074486960,8.6242,167.64,167.56,60.0]
[1717074487123,2.2072,167.63,167.56,60.0]
[1717074487321,8.6241,167.64,167.57,2.2079]
[1717074487548,13.0393,167.64,167.57,2.2079]
[1717074487923,8.6241,167.64,167.58,62.2078]
[1717074488118,8.6241,167.64,167.57,2.208]
[1717074488439,2.2076,167.6,167.54,2.2084]
[1717074488647,2.2075,167.61,167.54,62.2082]
[1717074488851,6.417,167.64,167.56,60.0]
[1717074489050,6.417,167.64,167.57,2.2079]
[1717074489221,6.1258,167.68,167.6,60.0]
[1717074489422,8.3324,167.68,167.61,2.2074]
[1717074489654,6.1258,167.68,167.6,78.01]
[1717074489841,8.3324,167.68,167.61,2.2073]
[1717074490443,8.3324,167.68,167.62,2.2073]
[1717074490822,8.3324,167.68,167.61,2.2074]
[1717074491019,2.2067,167.67,167.61,2.2074]
[1717074491941,8.3324,167.68,167.62,2.2073]
[1717074492846,8.3324,167.68,167.6,78.01]
[1717074492847,6.1258,167.68,167.61,2.2074]
[1717074493222,2.2067,167.67,167.6,78.01]
[1717074493531,8.3324,167.68,167.62,2.2073]
[1717074493740,2.2066,167.68,167.62,2.2073]
[1717074493938,22.7564,167.69,167.63,2.2072]
[1717074494146,6.1774,167.72,167.64,60.0]
[1717074494344,6.1774,167.72,167.66,2.2068]
[1717074494345,8.3835,167.72,167.66,2.2068]
[1717074494651,2.2061,167.72,167.66,2.2068]
[1717074494960,2.2059,167.73,167.67,2.2066]
[1717074495258,2.206,167.72,167.66,2.2068]
[1717074495426,2.206,167.72,167.66,62.2068]
[1717074495629,10.4778,167.76,167.67,2.2066]
[1717074495823,10.4778,167.76,167.68,62.2065]
[1717074495824,6.0667,167.76,167.68,62.2065]
[1717074496054,6.0667,167.76,167.69,2.2064]
[1717074496263,8.2722,167.76,167.7,2.2063]
[1717074496427,2.2055,167.76,167.69,20.2164]
[1717074496930,2.2055,167.76,167.7,2.2063]
[1717074497143,2.2055,167.76,167.69,20.2164]
[1717074497339,4.4104,167.79,167.69,20.2164]
[1717074497540,2.2055,167.76,167.69,2.2064]
[1717074497736,4.4104,167.79,167.69,2.2064]
[1717074497737,2.2056,167.75,167.69,2.2064]
[1717074498332,2.2055,167.76,167.7,62.2062]
[1717074498865,2.2054,167.77,167.71,2.2061]
[1717074499456,2.2052,167.78,167.72,60.0]
[1717074499650,2.2052,167.78,167.72,62.2059]
[1717074500741,2.2054,167.77,167.71,2.2061]
[1717074500944,6.6154,167.8,167.69,2.2063]
[1717074500945,2.2056,167.75,167.69,2.2063]
[1717074501652,6.6154,167.8,167.65,66.5959]
[1717074501853,2.2062,167.71,167.65,2.2069]
[1717074502153,2.2062,167.71,167.62,15.3474]
[1717074502154,2.2066,167.68,167.62,62.2072]
[1717074502658,2.2064,167.69,167.63,2.2072]
[1717074503047,2.2065,167.68,167.63,2.2072]
[1717074503639,2.2064,167.69,167.63,2.2072]
[1717074505072,2.2064,167.69,167.64,2.2071]
[1717074505363,2.2064,167.69,167.63,2.2072]
[1717074506063,2.2063,167.7,167.64,2.2071]
[1717074507164,2.2063,167.7,167.64,62.2071]
[1717074507343,2.2063,167.7,167.65,2.2069]
[1717074507544,26.7679,167.74,167.66,2.2068]
[1717074507860,26.7679,167.74,167.67,2.2066]
[1717074508060,26.7679,167.74,167.68,2.2065]
[1717074508267,28.9737,167.74,167.68,2.2065]
[1717074508562,26.7679,167.74,167.67,2.2066]
[1717074508746,26.7679,167.74,167.66,80.2168]
[1717074508947,26.7679,167.74,167.67,2.2066]
[1717074510555,26.7679,167.74,167.68,60.0]
[1717074510866,20.55,167.74,167.68,60.0]
[1717074511161,13.0958,167.79,167.7,2.2062]
[1717074511372,6.4802,167.79,167.71,2.2061]
[1717074511572,6.4802,167.79,167.7,62.2062]
[1717074511862,10.8907,167.79,167.69,2.2064]
[1717074512045,4.4105,167.78,167.69,2.2064]
[1717074512669,2.2059,167.74,167.67,18.01]
[1717074512961,2.2057,167.75,167.69,2.2063]
[1717074513852,2.2058,167.74,167.69,2.2063]
[1717074514539,2.2056,167.75,167.69,2.2063]
[1717074515248,2.2056,167.75,167.7,2.2063]
[1717074515648,2.2056,167.75,167.69,2.2064]
[1717074516365,2.2056,167.75,167.68,78.01]
[1717074516366,2.2056,167.75,167.7,62.2062]
[1717074516674,2.2056,167.75,167.69,2.2063]
[1717074517247,2.2056,167.75,167.7,2.2063]
[1717074517549,2.2055,167.76,167.7,2.2063]
[1717074517869,2.2056,167.75,167.7,2.2063]
[1717074518261,2.2056,167.75,167.69,2.2063]
[1717074518954,2.2056,167.75,167.58,474.14879937]
[1717074518955,4.4113,167.75,167.64,60.0]
[1717074519265,2.2061,167.72,167.66,2.2067]
[1717074519561,11.0284,167.75,167.68,2.2065]
[1717074519562,2.2059,167.73,167.68,2.2065]
[1717074519767,8.7538,167.73,167.68,2.2065]
[1717074520944,6.5479,167.73,167.66,60.0]
[1717074521145,6.5479,167.73,167.68,2.2065]
[1717074521352,8.7538,167.73,167.68,2.2065]
[1717074521553,11.0272,167.77,167.69,2.2063]
[1717074521750,2.2057,167.75,167.69,2.2063]
[1717074521969,2.2058,167.74,167.69,2.2063]
[1717074524368,2.2056,167.75,167.7,2.2062]
[1717074525373,2.2055,167.76,167.71,2.2061]
[1717074526769,2.2054,167.77,167.72,2.2059]
[1717074526978,2.2054,167.77,167.72,62.2059]
[1717074527277,6.2276,167.78,167.73,2.2059]
[1717074527572,2.2054,167.77,167.72,62.2059]
[1717074528270,4.4097,167.81,167.72,60.0]
[1717074528476,2.2052,167.79,167.74,2.2057]
[1717074528768,6.3959,167.78,167.72,2.206]
[1717074529077,6.3959,167.78,167.73,2.2058]
[1717074529379,8.6012,167.78,167.73,2.2058]
[1717074530083,2.2052,167.79,167.74,2.2057]
[1717074530445,6.6154,167.81,167.76,2.2055]
[1717074530676,6.6154,167.81,167.75,2.2056]
[1717074530877,2.2051,167.79,167.74,62.2057]
[1717074532381,2.2053,167.78,167.72,60.0]
[1717074532558,2.2053,167.78,167.74,60.0]
[1717074532871,2.2051,167.79,167.74,60.0]
[1717074533285,2.2051,167.79,167.73,20.2158]
[1717074533448,2.2051,167.79,167.74,62.2057]
[1717074533652,2.205,167.8,167.74,62.2057]
[1717074534667,2.2049,167.81,167.76,60.0]
[1717074535176,2.205,167.8,167.76,60.0]
[1717074535756,2.2049,167.81,167.76,62.2055]
[1717074536174,2.2047,167.82,167.77,2.2053]
[1717074536763,2.2045,167.84,167.79,2.205]
[1717074537365,2.2045,167.84,167.78,80.2152]
[1717074537784,2.2045,167.84,167.79,2.2051]
[1717074538477,6.0669,167.87,167.78,80.2152]
[1717074539957,6.0669,167.87,167.78,2.2052]
[1717074540684,2.2047,167.83,167.78,2.2052]
[1717074541470,2.2047,167.82,167.77,2.2053]
[1717074541666,24.9588,167.85,167.77,2.2053]
[1717074541870,2.2049,167.81,167.76,2.2054]
[1717074543173,2.205,167.8,167.75,2.2056]
[1717074543566,2.2052,167.79,167.74,2.2057]
[1717074543982,2.2052,167.78,167.74,2.2057]
[1717074544688,2.2051,167.79,167.74,2.2057]
[1717074545681,2.205,167.8,167.75,2.2056]
[1717074546289,2.205,167.8,167.75,62.2056]
[1717074546798,2.2049,167.81,167.76,2.2055]
[1717074546967,2.2047,167.82,167.77,2.2053]
[1717074548495,4.409,167.84,167.76,2.2054]
[1717074548904,2.2052,167.79,167.74,2.2057]
[1717074549072,2.2052,167.79,167.75,2.2056]
[1717074549583,2.2049,167.81,167.76,2.2055]
[1717074550392,2.205,167.8,167.76,2.2055]
[1717074551775,2.2049,167.81,167.76,2.2055]
[1717074552181,2.205,167.8,167.75,2.2056]
[1717074552384,2.205,167.8,167.75,62.2056]
[1717074552696,2.205,167.8,167.75,2.2056]
[1717074552883,2.2051,167.79,167.75,2.2056]
[1717074553093,2.2051,167.79,167.74,2.2057]
[1717074553897,2.2051,167.79,167.75,2.2056]
[1717074554099,2.205,167.8,167.76,2.2055]
[1717074554308,4.4092,167.83,167.76,2.2055]
[1717074554309,2.2049,167.81,167.76,2.2055]
[1717074556706,4.4087,167.85,167.77,2.2052]
[1717074557012,2.2048,167.81,167.77,2.2052]
[1717074557503,2.2047,167.82,167.77,2.2052]
[1717074558101,2.2046,167.83,167.78,62.2052]
[1717074559904,2.2047,167.82,167.77,20.2153]
[1717074560597,2.2047,167.82,167.77,2.2053]
[1717074560903,2.2047,167.82,167.77,20.2153]
[1717074561104,2.2047,167.82,167.77,2.2053]
[1717074562306,11.0218,167.85,167.77,2.2053]
[1717074562480,2.2047,167.82,167.76,2.2054]
[1717074562888,2.2047,167.82,167.77,2.2053]
[1717074563096,2.2047,167.82,167.77,62.2053]
[1717074563309,2.2047,167.82,167.77,2.2053]
[1717074564487,2.2046,167.83,167.78,2.2052]
[1717074566104,12.6794,167.87,167.79,2.2051]
[1717074566105,2.2045,167.84,167.79,2.2051]
[1717074566901,2.2044,167.85,167.8,2.205]
[1717074570293,2.2044,167.85,167.8,2.2049]
[1717074570504,2.2044,167.84,167.79,62.205]
[1717074570819,2.2044,167.85,167.79,62.205]
[1717074571197,2.2045,167.84,167.79,2.205]
[1717074571712,2.2043,167.85,167.8,2.2049]
[1717074572415,6.83,167.82,167.8,2.2049]
[1717074573497,6.83,167.83,167.8,2.2049]
[1717074573803,2.2043,167.85,167.8,2.2049]
[1717074575695,2.2043,167.85,167.81,60.0]
[1717074575896,6.83,167.84,167.81,62.2048]
[1717074576203,9.0711829,167.88,167.83,2.2046]
[1717074576403,6.83,167.85,167.84,0.39546789]
[1717074576603,6.83,167.85,167.83,2.2046]
[1717074577010,6.83,167.85,167.81,60.0]
[1717074577315,6.83,167.85,167.82,2.2047]
[1717074580122,3.0329829,167.88,167.83,2.2046]
[1717074580308,6.83,167.85,167.81,60.0]
[1717074580496,6.83,167.85,167.82,2.2046]
[1717074580699,6.83,167.85,167.81,60.0]
[1717074580898,6.83,167.85,167.83,2.2046]
[1717074584020,0.8289829,167.88,167.83,2.2046]
[1717074586725,3.0329829,167.88,167.83,2.2046]
[1717074587220,0.8289829,167.88,167.82,2.2046]
[1717074587418,6.83,167.85,167.82,2.2046]
[1717074587624,6.83,167.85,167.83,2.2046]
[1717074589223,0.8289829,167.88,167.83,62.2046]
[1717074590112,6.83,167.86,167.83,62.2046]
[1717074590313,6.83,167.86,167.84,2.2044]
[1717074590901,6.83,167.86,167.83,60.0]
[1717074591099,6.83,167.86,167.83,62.2045]
[1717074592917,3.0329829,167.88,167.83,62.2045]
[1717074593117,0.8289829,167.88,167.84,2.2044]
[1717074593513,0.8289829,167.88,167.85,2.2043]
[1717074593715,6.83,167.87,167.85,2.2043]
[1717074594518,6.83,167.87,167.84,2.2044]
[1717074597925,6.83,167.87,167.85,2.2043]
[1717074598316,0.8289829,167.88,167.85,2.2043]
[1717074598543,6.83,167.87,167.85,2.2043]
[1717074602119,6.83,167.87,167.85,62.2043]
[1717074602617,0.8289829,167.88,167.85,62.2043]
[1717074602816,7.6589829,167.88,167.85,62.2043]
[1717074603016,7.6589829,167.88,167.86,2.2041]
[1717074603949,7.6589829,167.88,167.85,62.2043]
[1717074604313,7.6589829,167.88,167.86,2.2042]
[1717074604520,7.6589829,167.88,167.85,62.2042]
[1717074604733,0.8289829,167.88,167.84,2.2044]
[1717074605725,6.83,167.85,167.8,35.96]
[1717074606041,2.2044,167.85,167.79,62.205]
[1717074606222,2.2044,167.85,167.79,2.205]
[1717074606411,2.2045,167.84,167.79,2.205]
[1717074606821,7.4409829,167.88,167.78,388.7]
[1717074607053,6.83,167.79,167.78,388.7]
[1717074607255,6.83,167.79,167.76,2.2054]
[1717074607551,4.4091,167.84,167.76,2.2054]
[1717074607723,6.83,167.79,167.76,2.2054]
[1717074608126,6.83,167.78,167.76,2.2054]
[1717074608325,6.83,167.78,167.75,60.0]
[1717074608326,2.2046,167.83,167.77,60.0]
[1717074608529,2.2045,167.84,167.79,62.205]
[1717074608753,2.2043,167.85,167.79,60.0]
[1717074609046,2.2042,167.86,167.81,62.2048]
[1717074609221,6.83,167.83,167.81,62.2048]
[1717074609426,0.8289829,167.88,167.81,60.0]
[1717074609624,6.83,167.85,167.83,2.2045]
[1717074610047,6.83,167.85,167.82,2.2046]
[1717074610245,6.83,167.86,167.83,60.0]
[1717074610423,6.83,167.86,167.84,2.2043]
[1717074610636,0.8289829,167.88,167.84,2.2043]
[1717074610835,3.0328829,167.88,167.84,2.2043]
[1717074611238,0.8289829,167.88,167.84,2.2043]
[1717074611733,0.8289829,167.88,167.85,2.2043]
[1717074611944,0.8289829,167.88,167.86,60.0]
[1717074612130,0.8289829,167.88,167.86,62.2041]
[1717074614038,0.8289829,167.88,167.87,2.204]
[1717074615348,0.8289829,167.88,167.86,62.2041]
[1717074615534,0.8289829,167.88,167.86,2.2041]
[1717074615737,7.6589829,167.88,167.85,2.2043]
[1717074615937,6.83,167.87,167.85,2.2043]
[1717074616949,0.8289829,167.88,167.85,2.2043]
[1717074617448,6.83,167.86,167.83,2.2045]
[1717074617667,6.83,167.85,167.84,2.2044]
[1717074618160,0.8289829,167.88,167.85,2.2043]
[1717074618332,0.8289829,167.88,167.84,2.2044]
[1717074619535,0.8289829,167.88,167.85,2.2042]
[1717074619735,0.8289829,167.88,167.86,62.2042]
[1717074620153,0.8289829,167.88,167.87,2.204]
[1717074620352,0.8289829,167.88,167.84,60.0]
[1717074620529,7.6589829,167.88,167.85,2.2042]
[1717074620932,0.8289829,167.88,167.85,2.2042]
[1717074622156,0.8289829,167.88,167.86,62.2041]
[1717074622454,0.8289829,167.88,167.87,2.204]
[1717074623978,0.8289829,167.88,167.86,62.2041]
[1717074624142,0.8289829,167.88,167.87,2.204]
[1717074624757,0.8289829,167.88,167.86,2.2041]
[1717074624940,7.6589829,167.88,167.86,2.2041]
[1717074625543,7.6589829,167.88,167.85,2.2042]
[1717074625959,7.6589829,167.88,167.86,2.2042]
[1717074627562,0.8289829,167.88,167.85,2.2043]
[1717074627861,6.83,167.86,167.84,2.2044]
[1717074628051,6.83,167.85,167.84,2.2044]
[1717074628254,6.83,167.86,167.84,2.2044]
[1717074628554,3.0328829,167.88,167.82,60.0]
[1717074628760,0.8289829,167.88,167.84,2.2044]
[1717074629257,0.8289829,167.88,167.85,2.2043]
[1717074629841,0.8289829,167.88,167.84,60.0]
[1717074629842,3.0328829,167.88,167.84,2.2044]
[1717074630060,3.0328829,167.88,167.83,2.2045]
[1717074630661,3.0328829,167.88,167.84,2.2044]
[1717074631052,0.8289829,167.88,167.84,2.2044]
[1717074631446,0.8289829,167.88,167.84,62.2044]
[1717074631651,0.8289829,167.88,167.85,2.2043]
[1717074632746,0.8289829,167.88,167.84,62.2044]
[1717074633169,0.8289829,167.88,167.84,2.2044]
[1717074633849,6.83,167.86,167.84,2.2044]
[1717074634769,6.83,167.86,167.85,2.2043]
[1717074634947,0.8289829,167.88,167.85,2.2043]
[1717074636952,0.8289829,167.88,167.84,60.0]
[1717074637280,0.8289829,167.88,167.85,2.2042]
[1717074637566,0.8289829,167.88,167.87,2.204]
[1717074637770,0.8289829,167.88,167.86,2.2041]
[1717074638385,7.6589829,167.88,167.87,2.204]
[1717074639296,0.8289829,167.88,167.87,2.204]
[1717074641177,0.8289829,167.88,167.86,60.0]
[1717074641503,6.83,167.87,167.86,2.2041]
[1717074642259,6.83,167.87,167.83,2.2045]
[1717074642462,3.0329829,167.88,167.83,2.2045]
[1717074642463,6.83,167.84,167.83,2.2045]
[1717074643183,3.0329829,167.88,167.84,2.2044]
[1717074643372,6.83,167.85,167.84,2.2044]
[1717074643579,6.83,167.85,167.82,60.0]
[1717074643779,6.83,167.85,167.83,2.2045]
[1717074644279,6.83,167.85,167.84,2.2044]
[1717074648081,6.83,167.86,167.85,2.2043]
[1717074648674,7.6589829,167.88,167.86,2.2042]
[1717074648877,0.8289829,167.88,167.86,62.2042]
[1717074649084,7.6589829,167.88,167.86,62.2042]
[1717074651682,0.8289829,167.88,167.87,2.204]
[1717074657663,0.8289829,167.88,167.87,48.7558]
[1717074657870,0.8289829,167.88,167.87,87.5348]
[1717074658172,0.8289829,167.88,167.87,107.5348]
[1717074658976,0.8289829,167.88,167.87,100.7048]
[1717074662068,0.8289829,167.88,167.87,64.1843]
[1717074662274,0.8289829,167.88,167.87,51.3884]
[1717074662994,0.8289829,167.88,167.87,58.0006]